bitfinex/quotes_SOLUSD_20240711
["timestamp","ask_amount","ask_price","bid_price","bid_amount"]
[1720687634346,11.59,142.63,142.55,16.1106]
[1720687634544,11.59,142.63,142.58,11.59]
[1720687634750,11.59,142.63,142.59,11.59]
[1720687634918,11.59,142.63,142.55,16.1106]
[1720687635257,11.59,142.62,142.57,11.59]
[1720687635851,11.59,142.63,142.58,11.59]
[1720687636021,11.59,142.64,142.59,11.59]
[1720687636627,11.59,142.63,142.58,11.59]
[1720687638343,11.59,142.64,142.59,11.59]
[1720687639643,11.59,142.63,142.58,11.59]
[1720687639844,11.59,142.63,142.55,16.1106]
[1720687640037,11.59,142.63,142.58,11.59]
[1720687640624,11.59,142.63,142.59,11.59]
[1720687642056,11.59,142.64,142.59,11.59]
[1720687642352,11.59,142.65,142.6,11.59]
[1720687642854,11.59,142.65,142.6,17.7747]
[1720687643268,11.59,142.64,142.6,6.1847]
[1720687643929,11.59,142.64,142.56,6.3147]
[1720687644124,11.59,142.63,142.59,11.59]
[1720687644335,11.59,142.63,142.56,6.3147]
[1720687644550,11.59,142.63,142.59,11.59]
[1720687644743,11.59,142.64,142.59,11.59]
[1720687644949,11.59,142.63,142.56,6.3147]
[1720687645135,11.59,142.62,142.56,6.3147]
[1720687645450,11.59,142.62,142.57,11.59]
[1720687645848,46.53,142.66,142.58,11.59]
[1720687646032,65.25321488,142.65,142.57,11.59]
[1720687646234,20.25321488,142.64,142.57,11.59]
[1720687646442,45.17,142.63,142.57,11.59]
[1720687646641,0.17,142.63,142.57,11.59]
[1720687646935,45.0,142.65,142.57,11.59]
[1720687647259,11.59,142.6,142.56,17.9047]
[1720687647435,11.59,142.6,142.56,6.3147]
[1720687648257,11.59,142.6,142.55,27.7006]
[1720687649749,16.3158,142.64,142.53,0.8382455]
[1720687649750,11.59,142.59,142.53,0.8382455]
[1720687649940,11.59,142.6,142.55,11.59]
[1720687650135,11.59,142.6,142.56,11.59]
[1720687650348,11.59,142.6,142.55,11.59]
[1720687650646,11.59,142.59,142.55,11.59]
[1720687651031,11.59,142.6,142.55,11.59]
[1720687652450,11.59,142.6,142.53,1.45825947]
[1720687652647,11.59,142.59,142.54,11.59]
[1720687653046,11.59,142.58,142.53,1.45825947]
[1720687653249,11.59,142.58,142.53,13.83117316]
[1720687653449,11.59,142.58,142.54,11.59]
[1720687653649,11.59,142.59,142.54,11.59]
[1720687653960,11.59,142.58,142.54,11.59]
[1720687654458,11.59,142.58,142.53,13.83117316]
[1720687654659,20.64691673,142.64,142.54,11.59]
[1720687654838,11.59,142.59,142.54,11.59]
[1720687655239,11.59,142.58,142.54,11.59]
[1720687655637,11.59,142.58,142.53,13.83117316]
[1720687655838,20.64691673,142.64,142.53,13.83117316]
[1720687656149,11.59,142.59,142.54,11.59]
[1720687656374,11.59,142.59,142.55,12.99281254]
[1720687656668,11.59,142.6,142.55,11.59]
[1720687656960,11.59,142.6,142.56,1.40251733]
[1720687657137,11.59,142.6,142.56,12.99251733]
[1720687657460,11.59,142.6,142.56,11.59]
[1720687657639,11.59,142.6,142.55,11.59]
[1720687658141,11.59,142.6,142.56,1.40222218]
[1720687658543,11.59,142.6,142.55,11.59]
[1720687659858,11.59,142.6,142.56,1.40192709]
[1720687660069,11.59,142.6,142.53,0.8382455]
[1720687660249,11.59,142.6,142.55,11.59]
[1720687660947,17.88101874,142.64,142.56,11.59]
[1720687661157,11.59,142.63,142.58,11.59]
[1720687661666,11.59,142.62,142.57,11.59]
[1720687661852,16.1458,142.64,142.56,11.59]
[1720687662164,11.59,142.61,142.56,11.59]
[1720687662544,11.59,142.6,142.55,11.59]
[1720687663455,11.59,142.6,142.53,0.8382455]
[1720687663654,11.59,142.6,142.55,11.59]
[1720687665068,11.59,142.6,142.53,20.8382455]
[1720687665247,11.59,142.59,142.55,11.59]
[1720687665448,11.59,142.6,142.55,11.59]
[1720687666268,16.1458,142.64,142.53,0.8382455]
[1720687666269,11.59,142.59,142.53,0.8382455]
[1720687666464,11.59,142.59,142.54,11.59]
[1720687666645,11.59,142.58,142.54,11.59]
[1720687667765,11.59,142.58,142.55,1.39268614]
[1720687667949,11.59,142.58,142.53,13.82093164]
[1720687668573,11.59,142.58,142.54,11.59]
[1720687669150,11.59,142.57,142.53,2.23093164]
[1720687669474,11.59,142.58,142.53,13.82093164]
[1720687670162,11.59,142.58,142.54,11.59]
[1720687670464,11.59,142.59,142.54,11.59]
[1720687670666,11.59,142.58,142.53,13.82093164]
[1720687671265,11.59,142.58,142.53,2.23093164]
[1720687671474,11.59,142.58,142.53,13.82093164]
[1720687671777,11.59,142.58,142.54,11.59]
[1720687672267,11.59,142.58,142.55,1.39249074]
[1720687672449,11.59,142.58,142.54,11.59]
[1720687672851,11.59,142.58,142.54,10.59]
[1720687673071,11.59,142.58,142.53,0.8382455]
[1720687673249,11.59,142.58,142.53,12.4282455]
[1720687673652,11.59,142.57,142.53,12.4282455]
[1720687674673,11.59,142.58,142.53,12.4282455]
[1720687675550,16.1458,142.64,142.53,12.4282455]
[1720687675551,11.59,142.59,142.54,11.59]
[1720687676350,16.1458,142.64,142.54,11.59]
[1720687676549,11.59,142.59,142.54,11.59]
[1720687676969,16.1458,142.64,142.55,11.59]
[1720687677270,11.59,142.62,142.57,11.59]
[1720687677450,11.59,142.62,142.53,1.0082455]
[1720687677451,11.59,142.61,142.56,11.59]
[1720687679176,16.62071874,142.68,142.57,22.5978]
[1720687679364,20.25173948,142.67,142.59,11.59]
[1720687679664,11.59,142.64,142.6,11.59]
[1720687680573,11.59,142.64,142.59,11.59]
[1720687680762,11.59,142.63,142.58,11.59]
[1720687680965,19.3704634,142.68,142.59,11.59]
[1720687681152,19.3704634,142.68,142.6,11.59]
[1720687681153,20.25118256,142.67,142.6,11.59]
[1720687681362,31.84120306,142.66,142.61,11.59]
[1720687681564,15.422,142.71,142.62,11.59]
[1720687681769,11.59,142.67,142.62,11.59]
[1720687682849,15.422,142.71,142.62,0.17]
[1720687683050,11.59,142.69,142.64,11.59]
[1720687683573,1.56521874,142.72,142.65,11.59]
[1720687683767,1.56521874,142.72,142.62,45.34]
[1720687683768,11.59,142.69,142.64,11.59]
[1720687684177,11.59,142.67,142.63,11.59]
[1720687684551,1.56521874,142.72,142.64,11.59]
[1720687684757,11.59,142.68,142.63,11.59]
[1720687685151,11.59,142.68,142.64,11.59]
[1720687685360,11.59,142.69,142.64,11.59]
[1720687685862,6.2874,142.77,142.67,11.59]
[1720687686094,6.2874,142.77,142.68,11.59]
[1720687686095,11.59,142.73,142.68,11.59]
[1720687686456,11.59,142.74,142.65,0.17]
[1720687686658,11.59,142.73,142.68,11.59]
[1720687687064,6.2874,142.77,142.65,65.34]
[1720687687263,6.2874,142.77,142.64,22.1113]
[1720687687264,11.59,142.73,142.64,22.1113]
[1720687687460,11.59,142.69,142.64,33.7013]
[1720687688874,11.59,142.72,142.67,11.59]
[1720687689059,11.59,142.71,142.66,11.59]
[1720687689563,11.59,142.7,142.65,11.59]
[1720687690761,11.59,142.69,142.64,22.1113]
[1720687691658,11.59,142.69,142.64,33.7013]
[1720687692486,11.59,142.66,142.61,16.2274]
[1720687692778,11.59,142.66,142.62,11.59]
[1720687694054,11.59,142.67,142.62,11.59]
[1720687694863,11.59,142.64,142.6,6.4254]
[1720687696268,11.59,142.63,142.57,22.6464]
[1720687696483,11.59,142.64,142.59,11.59]
[1720687696978,11.59,142.63,142.58,11.59]
[1720687697159,11.59,142.61,142.57,22.6464]
[1720687697360,15.2144,142.65,142.55,11.59]
[1720687697361,11.59,142.6,142.55,11.59]
[1720687699062,11.59,142.59,142.54,15.3178]
[1720687699267,11.59,142.57,142.53,18.8984455]
[1720687699469,11.59,142.58,142.53,18.8984455]
[1720687700279,11.59,142.59,142.54,11.59]
[1720687700885,11.59,142.59,142.55,11.59]
[1720687701094,11.59,142.59,142.53,7.3084455]
[1720687701279,11.59,142.57,142.53,7.3084455]
[1720687701603,11.59,142.57,142.53,18.8984455]
[1720687702590,122.96161874,142.65,142.54,11.59]
[1720687702591,22.96161874,142.65,142.54,11.59]
[1720687702892,11.59,142.59,142.54,11.59]
[1720687703796,11.59,142.6,142.55,11.59]
[1720687704091,11.59,142.6,142.56,11.59]
[1720687704273,22.96161874,142.65,142.56,11.59]
[1720687704469,11.59,142.6,142.53,7.3084455]
[1720687705095,11.59,142.6,142.55,11.59]
[1720687706598,11.59,142.59,142.55,11.59]
[1720687706896,11.59,142.57,142.53,7.3084455]
[1720687707073,122.96161874,142.65,142.53,0.8382455]
[1720687707074,11.59,142.56,142.53,0.8382455]
[1720687707273,11.59,142.57,142.53,0.8382455]
[1720687710597,11.59,142.56,142.53,0.8382455]
[1720687711500,11.59,142.57,142.53,0.8382455]
[1720687712198,11.59,142.56,142.53,0.8382455]
[1720687714593,11.59,142.57,142.53,0.8382455]
[1720687715000,15.8937,142.64,142.53,12.4282455]
[1720687715179,11.59,142.58,142.53,12.4282455]
[1720687715384,11.59,142.57,142.53,0.8382455]
[1720687715985,11.59,142.59,142.54,11.59]
[1720687716197,11.59,142.56,142.53,0.8382455]
[1720687716580,11.59,142.57,142.53,0.8382455]
[1720687717183,11.59,142.56,142.53,0.8382455]
[1720687717484,11.59,142.57,142.53,12.4282455]
[1720687718602,11.59,142.58,142.53,12.4282455]
[1720687718981,11.59,142.58,142.54,11.59]
[1720687719306,11.59,142.57,142.53,0.8382455]
[1720687719905,11.59,142.58,142.53,12.4282455]
[1720687721702,0.17,142.63,142.53,0.8382455]
[1720687721703,11.59,142.57,142.53,0.8382455]
[1720687722496,11.59,142.57,142.53,12.4282455]
[1720687725701,15.8937,142.64,142.55,11.59]
[1720687725909,11.59,142.6,142.55,11.59]
[1720687726097,15.8937,142.64,142.54,11.59]
[1720687726408,11.59,142.59,142.54,11.59]
[1720687728693,11.59,142.6,142.53,0.8382455]
[1720687728895,11.59,142.6,142.55,11.59]
[1720687729095,15.8937,142.64,142.55,11.59]
[1720687729294,45.17,142.63,142.55,11.59]
[1720687729510,11.59,142.61,142.56,11.59]
[1720687730088,11.59,142.6,142.55,11.59]
[1720687730991,11.59,142.6,142.56,21.572]
[1720687731196,11.59,142.61,142.57,11.59]
[1720687731392,15.8937,142.64,142.57,11.59]
[1720687731601,11.59,142.6,142.56,33.162]
[1720687732190,15.8937,142.64,142.56,33.162]
[1720687732191,11.59,142.61,142.56,33.162]
[1720687733301,2.75236017,142.66,142.56,33.162]
[1720687733499,11.59,142.63,142.58,11.59]
[1720687734207,45.0,142.66,142.58,11.59]
[1720687734411,12.65889633,142.65,142.58,11.59]
[1720687734713,11.59,142.64,142.59,11.59]
[1720687735010,15.8234,142.67,142.59,11.59]
[1720687735194,12.65804414,142.66,142.59,11.59]
[1720687735394,11.59,142.64,142.59,11.59]
[1720687737509,11.59,142.66,142.61,11.59]
[1720687738498,11.59,142.65,142.6,33.5241]
[1720687739590,11.59,142.66,142.61,11.59]
[1720687740292,11.59,142.66,142.6,21.9341]
[1720687740293,46.36,142.73,142.62,11.59]
[1720687740514,11.59,142.67,142.62,11.59]
[1720687740712,12.65619539,142.66,142.62,11.59]
[1720687740915,11.59,142.67,142.62,11.59]
[1720687741101,11.59,142.64,142.6,21.9341]
[1720687741416,11.59,142.65,142.6,33.5241]
[1720687741597,11.59,142.65,142.61,11.59]
[1720687742699,11.59,142.64,142.6,21.9341]
[1720687742896,11.59,142.65,142.6,33.5241]
[1720687743215,11.59,142.65,142.61,11.59]
[1720687744109,11.59,142.66,142.61,11.59]
[1720687744497,15.1213,142.72,142.6,22.2741]
[1720687744796,11.59,142.68,142.61,45.34]
[1720687745001,11.59,142.67,142.62,11.59]
[1720687745610,11.59,142.66,142.61,11.59]
[1720687746212,11.59,142.66,142.6,21.9341]
[1720687746410,11.59,142.65,142.61,11.59]
[1720687746610,11.59,142.65,142.6,33.5241]
[1720687746811,11.59,142.66,142.61,11.59]
[1720687748326,11.59,142.65,142.6,33.5241]
[1720687749523,11.59,142.66,142.61,11.59]
[1720687749903,11.59,142.65,142.61,11.59]
[1720687750105,11.59,142.66,142.61,11.59]
[1720687750424,11.59,142.66,142.62,11.59]
[1720687750602,11.59,142.66,142.62,10.59]
[1720687751421,11.59,142.67,142.62,10.59]
[1720687751620,11.59,142.68,142.63,11.59]
[1720687751930,11.59,142.68,142.64,1.39509875]
[1720687752718,11.59,142.69,142.65,1.39500095]
[1720687753309,11.59,142.68,142.63,11.59]
[1720687753508,11.59,142.69,142.64,11.59]
[1720687753908,11.59,142.69,142.65,1.39196094]
[1720687754127,11.59,142.7,142.65,12.98196094]
[1720687754503,18.54516905,142.75,142.65,12.98196094]
[1720687754504,11.59,142.71,142.66,26.6669]
[1720687754713,11.59,142.71,142.67,1.3917658]
[1720687755124,11.59,142.68,142.64,15.5007]
[1720687755322,18.54516905,142.75,142.64,15.5007]
[1720687755508,11.59,142.68,142.64,27.0907]
[1720687755708,11.59,142.69,142.64,27.0907]
[1720687756409,11.59,142.68,142.64,27.0907]
[1720687756626,11.59,142.68,142.64,15.5007]
[1720687757514,11.59,142.65,142.6,6.3368]
[1720687757715,11.59,142.65,142.6,17.9268]
[1720687758325,11.59,142.67,142.62,11.59]
[1720687758943,11.59,142.66,142.61,11.59]
[1720687760539,11.59,142.65,142.6,17.9268]
[1720687760738,11.59,142.66,142.61,11.59]
[1720687762138,11.59,142.67,142.62,11.59]
[1720687762446,11.59,142.67,142.63,11.59]
[1720687764315,15.2848,142.72,142.63,11.59]
[1720687764513,11.59,142.69,142.64,11.59]
[1720687765141,9.33566905,142.75,142.65,17.8781]
[1720687765142,23.0263,142.75,142.65,17.8781]
[1720687765356,11.59,142.69,142.65,17.8781]
[1720687766422,11.59,142.7,142.65,17.8781]
[1720687767129,18.08831874,142.75,142.65,17.8781]
[1720687767329,18.08831874,142.75,142.66,11.59]
[1720687767330,11.59,142.71,142.66,11.59]
[1720687767533,18.08831874,142.75,142.67,11.59]
[1720687767753,11.59,142.72,142.67,11.59]
[1720687768051,11.59,142.72,142.68,11.59]
[1720687768846,15.7816,142.78,142.69,11.59]
[1720687769017,11.59,142.74,142.69,11.59]
[1720687769453,11.59,142.73,142.69,11.59]
[1720687769653,11.59,142.73,142.68,11.59]
[1720687771126,11.59,142.72,142.68,11.59]
[1720687772231,11.59,142.73,142.68,11.59]
[1720687772435,15.7816,142.78,142.68,11.59]
[1720687772743,11.59,142.76,142.71,18.1639]
[1720687772947,14.46883616,142.81,142.71,18.1639]
[1720687773147,11.59,142.76,142.72,0.70382485]
[1720687775671,11.59,142.76,142.71,18.1639]
[1720687776048,46.36,142.8,142.71,18.1639]
[1720687776351,11.59,142.76,142.71,18.1639]
[1720687776763,11.59,142.75,142.71,6.5739]
[1720687777531,11.59,142.74,142.71,6.5739]
[1720687779060,11.59,142.75,142.71,6.5739]
[1720687781356,11.59,142.74,142.71,6.5739]
[1720687783462,11.59,142.73,142.68,6.2057]
[1720687783681,46.36,142.8,142.68,6.2057]
[1720687783682,11.59,142.72,142.68,17.7957]
[1720687783962,11.59,142.72,142.68,6.2057]
[1720687784139,11.59,142.72,142.68,17.7957]
[1720687784549,46.36,142.8,142.69,11.59]
[1720687784749,11.59,142.74,142.69,11.59]
[1720687785479,11.59,142.73,142.69,11.59]
[1720687792653,11.59,142.74,142.69,11.59]
[1720687795680,45.17,142.79,142.69,11.59]
[1720687795883,11.59,142.74,142.69,11.59]
[1720687800546,45.17,142.79,142.68,6.2057]
[1720687800770,20.23636046,142.78,142.69,11.59]
[1720687800981,11.59,142.74,142.69,11.59]
[1720687801160,45.17,142.79,142.68,6.2057]
[1720687801357,7.82953616,142.81,142.73,22.259]
[1720687801564,20.23395354,142.8,142.73,33.849]
[1720687801878,16.1306,142.82,142.73,33.849]
[1720687802082,11.59,142.77,142.73,33.849]
[1720687802465,11.59,142.78,142.73,33.849]
[1720687802667,11.59,142.77,142.73,33.849]
[1720687803564,11.59,142.8,142.73,22.259]
[1720687803782,11.59,142.76,142.73,22.259]
[1720687804375,11.59,142.77,142.73,22.259]
[1720687804761,11.59,142.77,142.73,33.849]
[1720687805673,16.1306,142.82,142.73,33.849]
[1720687805874,11.59,142.78,142.73,33.849]
[1720687807691,11.59,142.77,142.73,33.849]
[1720687808598,11.59,142.77,142.73,22.259]
[1720687811799,11.59,142.78,142.73,33.849]
[1720687814495,1.56521874,142.83,142.74,0.17]
[1720687814705,31.81945616,142.82,142.77,11.59]
[1720687815002,20.22945616,142.81,142.77,11.59]
[1720687815373,31.81945616,142.81,142.76,11.59]
[1720687815578,31.81945616,142.81,142.74,45.51]
[1720687815579,11.59,142.81,142.77,11.59]
[1720687815788,11.59,142.81,142.76,11.59]
[1720687815789,20.22996612,142.8,142.76,11.59]
[1720687816172,11.59,142.81,142.76,11.59]
[1720687819599,11.59,142.81,142.77,1.39991839]
[1720687819812,11.59,142.81,142.74,45.34]
[1720687820097,11.59,142.77,142.73,22.259]
[1720687820273,27.088,142.8,142.7,6.4473]
[1720687820480,11.59,142.74,142.7,6.4473]
[1720687820679,11.59,142.73,142.7,6.4473]
[1720687821374,63.40054419,142.79,142.69,16.1658]
[1720687821375,11.59,142.71,142.69,16.1658]
[1720687821601,11.59,142.72,142.69,16.1658]
[1720687821780,11.59,142.73,142.69,16.1658]
[1720687822103,11.59,142.74,142.69,27.7558]
[1720687822678,63.40054419,142.79,142.69,27.7558]
[1720687822679,18.23054419,142.79,142.7,0.17]
[1720687822887,20.23622012,142.78,142.72,11.59]
[1720687823197,7.23249239,142.82,142.73,0.17]
[1720687823198,11.59,142.77,142.73,0.17]
[1720687823381,11.59,142.78,142.73,11.76]
[1720687826796,15.115,142.83,142.74,26.7669]
[1720687827005,20.23220193,142.82,142.74,26.7669]
[1720687827187,11.59,142.79,142.74,26.7669]
[1720687827781,15.115,142.83,142.74,26.7669]
[1720687828009,11.59,142.79,142.74,26.7669]
[1720687828981,15.115,142.83,142.76,11.59]
[1720687829188,11.59,142.81,142.76,11.59]
[1720687829383,1.56521874,142.85,142.77,11.59]
[1720687829897,11.59,142.82,142.78,11.59]
[1720687830304,11.59,142.82,142.77,11.59]
[1720687830813,11.59,142.81,142.76,18.1656]
[1720687832505,19.77584493,142.86,142.78,11.59]
[1720687832698,20.22850573,142.85,142.79,35.7953]
[1720687832999,31.81850573,142.85,142.81,11.59]
[1720687833204,19.87138555,142.91,142.79,15.7953]
[1720687833205,20.22488477,142.84,142.79,15.7953]
[1720687833410,11.59,142.81,142.79,15.7953]
[1720687833626,11.59,142.81,142.78,0.17]
[1720687833781,11.59,142.81,142.76,33.9609]
[1720687834594,11.59,142.82,142.77,11.59]
[1720687835708,18.20192183,142.9,142.77,11.59]
[1720687836006,18.20192183,142.9,142.76,22.3709]
[1720687836007,11.59,142.83,142.78,11.59]
[1720687836692,18.19889268,142.87,142.78,11.59]
[1720687836892,11.59,142.83,142.78,11.59]
[1720687837094,1.73521874,142.89,142.79,56.59]
[1720687837299,20.22518862,142.88,142.8,11.59]
[1720687837510,11.59,142.84,142.79,11.59]
[1720687837692,11.59,142.83,142.79,11.59]
[1720687837898,11.59,142.84,142.79,11.59]
[1720687838095,11.59,142.83,142.78,11.76]
[1720687838616,11.59,142.82,142.77,56.59]
[1720687839916,11.59,142.82,142.77,11.59]
[1720687840101,1.56521874,142.89,142.77,11.59]
[1720687840310,11.59,142.82,142.77,11.59]
[1720687840629,11.59,142.8,142.76,22.3709]
[1720687840790,11.59,142.79,142.76,22.3709]
[1720687841494,40.45162954,142.86,142.76,22.3709]
[1720687841689,11.59,142.78,142.76,22.3709]
[1720687842503,11.59,142.78,142.74,6.5135]
[1720687842712,11.59,142.78,142.74,18.1035]
[1720687843510,11.59,142.78,142.74,6.5135]
[1720687844009,11.59,142.78,142.75,1.40084845]
[1720687844216,11.59,142.79,142.75,1.40084845]
[1720687844713,11.59,142.8,142.75,12.99084845]
[1720687845414,11.59,142.81,142.76,11.59]
[1720687847716,11.59,142.82,142.77,11.59]
[1720687848305,11.59,142.83,142.78,11.59]
[1720687848729,11.59,142.83,142.78,28.002]
[1720687850020,11.59,142.84,142.8,11.59]
[1720687850396,11.59,142.84,142.81,1.40025297]
[1720687850720,15.8952,142.89,142.81,12.99025297]
[1720687850908,20.22454103,142.88,142.81,12.99025297]
[1720687851107,11.59,142.85,142.8,18.229]
[1720687851309,20.22454103,142.88,142.8,18.229]
[1720687851310,11.59,142.87,142.8,6.639]
[1720687851516,11.59,142.82,142.78,16.412]
[1720687852011,46.36,142.87,142.78,16.412]
[1720687852213,11.59,142.83,142.78,28.002]
[1720687853902,11.59,142.82,142.78,16.412]
[1720687854525,11.59,142.83,142.78,28.002]
[1720687856500,11.59,142.82,142.78,16.412]
[1720687858020,11.59,142.8,142.78,16.412]
[1720687858737,11.59,142.8,142.77,6.4107]
[1720687859021,11.59,142.79,142.77,6.4107]
[1720687859224,11.59,142.78,142.77,6.4107]
[1720687859411,11.59,142.79,142.77,6.4107]
[1720687859813,11.59,142.8,142.77,6.4107]
[1720687861726,63.18438318,142.86,142.77,6.4107]
[1720687861907,11.59,142.8,142.77,6.4107]
[1720687864518,47.78148483,142.86,142.77,6.4107]
[1720687864714,11.59,142.81,142.77,18.0007]
[1720687865324,11.59,142.82,142.77,18.0007]
[1720687866815,11.59,142.83,142.78,11.59]
[1720687867832,11.59,142.83,142.79,11.59]
[1720687868009,11.59,142.84,142.79,11.59]
[1720687869312,18.18806106,142.88,142.79,11.59]
[1720687869514,11.59,142.84,142.8,15.5273]
[1720687870525,11.59,142.83,142.8,15.5273]
[1720687871236,11.59,142.83,142.8,15.3573]
[1720687874431,11.59,142.84,142.8,26.9473]
[1720687874615,11.59,142.85,142.8,26.9473]
[1720687874813,31.81449286,142.84,142.8,15.3573]
[1720687875014,11.59,142.83,142.8,15.3573]
[1720687875829,11.59,142.82,142.8,15.3573]
[1720687876329,11.59,142.82,142.77,6.4107]
[1720687876517,11.59,142.82,142.77,18.0007]
[1720687877141,11.59,142.81,142.77,6.4107]
[1720687877322,11.59,142.79,142.77,6.4107]
[1720687877638,11.59,142.79,142.76,15.8854]
[1720687878133,11.59,142.78,142.76,15.8854]
[1720687878926,11.59,142.79,142.76,15.8854]
[1720687882441,11.59,142.78,142.73,17.7538]
[1720687885745,11.59,142.79,142.74,11.59]
[1720687888163,11.59,142.79,142.75,11.59]
[1720687889345,18.77840994,142.84,142.75,11.59]
[1720687889346,15.9794,142.84,142.75,11.59]
[1720687889550,20.22883847,142.83,142.77,11.59]
[1720687889855,31.81883847,142.82,142.74,0.51]
[1720687890026,15.8947,142.87,142.78,11.59]
[1720687890233,11.59,142.82,142.78,6.3047]
[1720687890555,11.59,142.82,142.77,26.7078]
[1720687890556,11.59,142.79,142.74,78.1825]
[1720687890747,11.59,142.79,142.74,33.1825]
[1720687894456,11.59,142.8,142.75,11.59]
[1720687895957,11.59,142.8,142.74,21.5925]
[1720687896267,11.59,142.8,142.75,11.59]
[1720687899760,11.59,142.79,142.74,33.0125]
[1720687900139,11.59,142.79,142.74,21.4225]
[1720687900347,11.59,142.79,142.74,33.0125]
[1720687903453,11.59,142.81,142.76,11.59]
[1720687904258,18.14290158,142.86,142.76,11.59]
[1720687904559,11.59,142.82,142.77,11.59]
[1720687904761,11.59,142.81,142.75,0.34]
[1720687904948,11.59,142.81,142.76,11.59]
[1720687905660,18.14689282,142.86,142.76,11.59]
[1720687905967,11.59,142.81,142.76,11.59]
[1720687906547,11.59,142.8,142.74,21.4225]
[1720687906862,15.5134,142.81,142.74,6.3047]
[1720687907067,11.59,142.76,142.72,11.59]
[1720687907271,11.59,142.76,142.71,18.2537]
[1720687907469,11.59,142.8,142.72,11.59]
[1720687907470,11.59,142.77,142.72,11.59]
[1720687907761,11.59,142.8,142.71,6.6637]
[1720687908068,11.59,142.73,142.7,15.7802]
[1720687908367,11.59,142.72,142.67,22.0901]
[1720687908560,11.59,142.72,142.67,33.6801]
[1720687908950,11.59,142.72,142.68,11.59]
[1720687910861,15.3541,142.76,142.69,11.59]
[1720687910862,11.59,142.74,142.69,11.59]
[1720687911070,15.3541,142.76,142.69,11.59]
[1720687911367,11.59,142.73,142.68,11.76]
[1720687911570,11.59,142.73,142.68,0.17]
[1720687911753,11.59,142.73,142.68,11.76]
[1720687911953,11.59,142.74,142.69,11.59]
[1720687912171,15.3541,142.76,142.68,0.34]
[1720687912473,11.59,142.75,142.7,11.59]
[1720687913474,11.59,142.74,142.69,0.34]
[1720687913676,11.59,142.74,142.7,0.17]
[1720687914164,11.59,142.74,142.69,11.93]
[1720687914165,11.59,142.74,142.69,11.76]
[1720687914364,11.59,142.74,142.69,11.59]
[1720687914775,11.59,142.73,142.68,56.76]
[1720687914968,11.59,142.73,142.69,0.17]
[1720687916288,22.2401,142.79,142.69,11.76]